bitfinex-derivatives/quotes_BTCF0:USTF0_20251216
["timestamp","ask_amount","ask_price","bid_price","bid_amount"]
[1765892151256,0.13765,87155.0,87150.0,0.0114768]
[1765892151566,0.13765,87155.0,87151.0,0.0114767]
[1765892151765,0.03062092,87154.0,87140.0,0.00010062]
[1765892152067,0.27415,87141.0,87140.0,0.00010062]
[1765892152273,0.30477092,87141.0,87140.0,0.00010062]
[1765892152564,0.16827092,87141.0,87140.0,0.00010062]
[1765892152769,0.30477092,87141.0,87140.0,0.00010062]
[1765892153659,0.27415,87133.0,87132.0,0.00017214]
[1765892153860,0.03062092,87133.0,87132.0,0.00017214]
[1765892154059,0.30477092,87133.0,87132.0,0.00017214]
[1765892154460,0.0114794,87132.0,87117.0,0.0114813]
[1765892154663,0.0114794,87132.0,87086.0,0.0114853]
[1765892154664,0.00010062,87131.0,87127.0,0.0114799]
[1765892154965,0.03062092,87130.0,87121.0,0.0114807]
[1765892155165,0.03062092,87130.0,87088.0,1.52860797]
[1765892155166,0.27415,87122.0,87088.0,1.43468]
[1765892155367,0.00010062,87131.0,87088.0,1.43468]
[1765892155368,0.00017214,87114.0,87109.0,0.0114823]
[1765892155565,0.03062092,87113.0,87109.0,0.0114823]
[1765892155761,0.03062092,87112.0,87109.0,0.0114823]
[1765892155962,0.03062092,87111.0,87109.0,0.0114823]
[1765892156168,0.03062092,87110.0,87109.0,0.0114823]
[1765892156860,0.03062092,87110.0,87105.0,0.0114828]
[1765892157067,0.03062092,87109.0,87108.0,0.0114824]
[1765892158063,0.03062092,87109.0,87096.0,0.00017214]
[1765892158266,0.27415,87097.0,87096.0,0.00017214]
[1765892158469,0.30477092,87097.0,87096.0,0.00017214]
[1765892158865,0.2856352,87087.0,87068.0,0.0114877]
[1765892159065,0.38675092,87087.0,87055.0,0.0114894]
[1765892159276,0.03062092,87086.0,87055.0,0.0114894]
[1765892159490,0.011486,87082.0,87063.0,0.0114883]
[1765892159674,0.39168333,87070.0,87057.0,0.0114892]
[1765892159873,0.03062092,87069.0,87057.0,0.0114892]
[1765892160178,0.03070169,87068.0,87055.0,0.00017224]
[1765892160372,0.0114891,87059.0,87055.0,0.00017224]
[1765892160676,0.39168333,87065.0,87029.0,9.453e-05]
[1765892160677,0.08198,87054.0,87033.0,0.0114922]
[1765892160860,0.03062092,87053.0,87050.0,0.0114901]
[1765892161060,0.20368353,87095.0,87066.0,0.011488]
[1765892161061,0.06098196,87086.0,87066.0,0.011488]
[1765892161276,0.06098196,87112.0,87106.0,0.0114827]
[1765892161478,0.39168333,87130.0,87101.0,0.0114834]
[1765892161479,0.06098196,87118.0,87101.0,0.0114834]
[1765892161771,0.0114805,87123.0,87078.0,0.06007]
[1765892161772,0.06098196,87119.0,87090.0,0.0001153]
[1765892161963,0.39168333,87120.0,87090.0,0.0001153]
[1765892162271,0.39168333,87120.0,87065.0,0.0114881]
[1765892162272,0.0114816,87115.0,87063.0,0.0574418]
[1765892162477,0.0114846,87092.0,87067.0,0.0114878]
[1765892162781,0.00014633,87091.0,87090.0,0.0114849]
[1765892163077,0.08164995,87127.0,87071.0,0.00017224]
[1765892163078,0.39168333,87120.0,87074.0,0.057435]
[1765892163264,0.47366333,87100.0,87088.0,0.00017224]
[1765892163863,0.47366333,87100.0,87089.0,0.011485]
[1765892164276,0.00017224,87106.0,87105.0,0.0114829]
[1765892164575,0.39168333,87130.0,87114.0,0.0114817]
[1765892164772,0.4552,87129.0,87086.0,0.0114853]
[1765892164972,0.0114789,87136.0,87050.0,0.06015]
[1765892164973,0.08284,87100.0,87092.0,0.0114846]
[1765892165175,0.08284,87100.0,87096.0,0.011484]
[1765892165377,0.06098196,87133.0,87089.0,0.011485]
[1765892165571,0.39168333,87110.0,87098.0,0.00017224]
[1765892166083,0.08284,87100.0,87098.0,0.00017224]
[1765892166574,0.0114838,87098.0,87052.0,0.0114898]
[1765892166765,0.39168333,87090.0,87073.0,0.011487]
[1765892166967,0.08284,87100.0,87097.0,0.0114839]
[1765892167276,0.08284,87100.0,87090.0,0.0114847]
[1765892167576,0.00017224,87104.0,87103.0,0.0114831]
[1765892167779,0.39168333,87130.0,87117.0,0.0114812]
[1765892167976,0.0114808,87121.0,87095.0,0.00017224]
[1765892168164,0.39168333,87110.0,87095.0,0.00017224]
[1765892168366,0.0934603,87125.0,87107.0,0.0114826]
[1765892168367,0.00017224,87111.0,87107.0,0.0114826]
[1765892168875,0.00017224,87111.0,87095.0,0.00017224]
[1765892169074,0.08284,87100.0,87077.0,0.0114865]
[1765892169278,0.011485,87089.0,87055.0,0.0114894]
[1765892169481,0.40316823,87090.0,87070.0,0.0114874]
[1765892169685,0.47452333,87100.0,87044.0,0.0574542]
[1765892169866,0.72176,87099.0,87080.0,0.0114861]
[1765892170072,0.0114839,87097.0,87082.0,0.0114859]
[1765892170272,0.00017224,87098.0,87096.0,0.011484]
[1765892170481,0.7536,87129.0,87096.0,0.0114839]
[1765892170985,0.0114804,87124.0,87108.0,0.0114824]
[1765892171179,0.39168333,87118.0,87097.0,0.0114838]
[1765892171375,0.39168333,87118.0,87066.0,0.0084]
[1765892171581,0.0114816,87115.0,87102.0,0.0114832]
[1765892171877,0.00017224,87116.0,87103.0,0.011483]
[1765892172083,0.00017224,87116.0,87106.0,0.0114827]
[1765892172385,0.00017224,87116.0,87113.0,0.0114817]
[1765892173183,0.00017224,87116.0,87099.0,0.00017224]
[1765892173381,0.00017224,87116.0,87109.0,0.0114823]
[1765892173574,0.00017224,87116.0,87099.0,0.00017224]
[1765892173884,0.39168333,87110.0,87067.0,0.13]
[1765892174071,0.08284,87096.0,87080.0,0.0114861]
[1765892174384,0.08284,87096.0,87059.0,0.0114889]
[1765892174581,0.08284,87096.0,87070.0,0.0114874]
[1765892174782,0.39168333,87100.0,87070.0,0.0114874]
[1765892175078,0.06098196,87137.0,87111.0,0.0114821]
[1765892175386,0.39168333,87140.0,87098.0,0.0114837]
[1765892175573,0.39168333,87140.0,87114.0,0.0114816]
[1765892175880,0.39168333,87140.0,87107.0,0.0114826]
[1765892176088,0.02735717,87139.0,87096.0,0.07931]
[1765892176283,0.02735717,87138.0,87136.0,0.0114787]
[1765892176482,0.00017214,87146.0,87142.0,0.011478]
[1765892176677,0.00017214,87146.0,87099.0,0.0574185]
[1765892176678,0.02713155,87145.0,87135.0,0.00017214]
[1765892176873,0.02713155,87144.0,87131.0,0.00017214]
[1765892177078,0.00017214,87149.0,87141.0,0.0114781]
[1765892177278,0.02712979,87148.0,87144.0,0.0114776]
[1765892177485,0.00017214,87149.0,87131.0,0.00017214]
[1765892177675,0.02715966,87148.0,87131.0,0.00017214]
[1765892177875,0.00017214,87149.0,87148.0,0.0114772]
[1765892178190,0.0114728,87182.0,87157.0,0.011476]
[1765892178481,0.0114766,87153.0,87128.0,0.0114798]
[1765892178672,0.0114768,87151.0,87113.0,0.0114817]
[1765892178876,0.02718201,87150.0,87135.0,0.0114788]
[1765892179178,0.02718201,87149.0,87134.0,0.00017214]
[1765892179381,0.02718201,87148.0,87134.0,0.00017214]
[1765892179681,0.02718201,87147.0,87134.0,0.01165114]
[1765892179980,0.02718201,87146.0,87138.0,0.0114785]
[1765892180185,0.02718201,87145.0,87135.0,0.0114789]
[1765892180378,0.02718201,87144.0,87135.0,0.0114789]
[1765892180680,0.02718201,87143.0,87134.0,0.00017214]
[1765892180881,0.02718201,87142.0,87134.0,0.00017214]
[1765892181187,0.02718201,87141.0,87138.0,0.0114784]
[1765892181382,0.02718201,87140.0,87134.0,0.00017214]
[1765892181587,0.02718201,87139.0,87134.0,0.00017214]
[1765892181887,0.02718201,87138.0,87134.0,0.00017214]
[1765892182088,0.02718201,87137.0,87134.0,0.00017214]
[1765892182277,0.02718201,87136.0,87134.0,0.00017214]
[1765892182472,0.02718201,87135.0,87122.0,0.0114806]
[1765892182678,0.02718201,87134.0,87099.0,0.0114836]
[1765892182879,0.12528,87156.0,87140.0,0.0114781]
[1765892183092,1.51724995,87166.0,87120.0,0.07931]
[1765892183093,0.027228,87155.0,87154.0,0.0114764]
[1765892183286,0.0114728,87182.0,87163.0,0.0114752]
[1765892183478,0.02739235,87181.0,87164.0,0.00017214]
[1765892183683,0.08284,87168.0,87147.0,0.0114773]
[1765892183873,0.02722021,87167.0,87153.0,0.0114764]
[1765892184079,0.0114758,87159.0,87123.0,0.0114805]
[1765892184379,0.08284,87168.0,87126.0,0.01148]
[1765892184380,0.0114777,87145.0,87126.0,0.01148]
[1765892184587,0.02739235,87144.0,87127.0,0.00011506]
[1765892184784,0.02722021,87143.0,87127.0,0.00011506]
[1765892185085,0.0114786,87138.0,87127.0,0.00011506]
[1765892185285,0.02722021,87137.0,87127.0,0.00011506]
[1765892185474,0.00017214,87144.0,87127.0,0.00011506]
[1765892185475,0.02722021,87136.0,87127.0,0.00011506]
[1765892185680,0.02722021,87135.0,87127.0,0.00011506]
[1765892185878,0.00017214,87144.0,87127.0,0.00011506]
[1765892185879,0.02722021,87134.0,87127.0,0.00011506]
[1765892186084,0.02722021,87133.0,87127.0,0.00011506]
[1765892186286,0.02722021,87132.0,87130.0,0.0114795]
[1765892186485,0.00017214,87144.0,87127.0,0.00011506]
[1765892186681,0.02720762,87143.0,87131.0,0.0114794]
[1765892186997,0.02720762,87142.0,87134.0,0.011479]
[1765892187291,0.02720762,87141.0,87134.0,0.0114789]
[1765892187596,0.02720762,87140.0,87129.0,0.0114796]
[1765892187793,0.02720762,87139.0,87129.0,0.0114796]
[1765892187992,0.02720762,87138.0,87127.0,0.00011506]
[1765892188296,0.02720762,87138.0,87083.0,0.13906677]
[1765892188297,0.02720762,87137.0,87080.0,1.43552]
[1765892188481,0.0114811,87119.0,87078.0,0.07931]
[1765892188681,0.0114838,87099.0,87067.0,0.0114879]
[1765892188888,0.02720762,87098.0,87083.0,0.0114857]
[1765892189093,0.02720762,87098.0,87055.0,0.01852]
[1765892189094,0.08284,87096.0,87055.0,0.01852]
[1765892189279,0.00017225,87084.0,87070.0,0.0114874]
[1765892189483,0.00017225,87084.0,87059.0,0.0114889]
[1765892189684,0.00017225,87084.0,87076.0,0.0114866]
[1765892189879,8.409e-05,87083.0,87055.0,0.01852]
[1765892190080,0.02719465,87082.0,87055.0,0.01852]
[1765892190285,8.409e-05,87083.0,87055.0,0.0300095]
[1765892190492,0.02719029,87082.0,87080.0,0.0114861]
[1765892190687,8.409e-05,87083.0,87080.0,0.0114861]
[1765892190891,0.02719465,87082.0,87080.0,0.0114861]
[1765892191091,8.409e-05,87083.0,87080.0,0.0114861]
[1765892191391,0.75216,87109.0,87094.0,0.0114842]
[1765892191597,0.02719601,87108.0,87102.0,0.0114832]
[1765892191795,0.02719601,87107.0,87102.0,0.0114832]
[1765892191991,0.02719601,87107.0,87072.0,0.07931]
[1765892191992,0.02719601,87106.0,87105.0,0.0114829]
[1765892192197,0.00017225,87114.0,87097.0,0.00017225]
[1765892192497,0.02720181,87113.0,87097.0,0.00017225]
[1765892192696,0.02720181,87112.0,87109.0,0.0114823]
[1765892192992,0.02720181,87111.0,87109.0,0.0114823]
[1765892193199,0.00017225,87114.0,87113.0,0.0114818]
[1765892193595,0.02757513,87114.0,87097.0,0.00017225]
[1765892193783,0.47020116,87110.0,87097.0,0.00017225]
[1765892193984,0.011483,87105.0,87097.0,2.25e-06]
[1765892194191,0.0114836,87100.0,87097.0,2.25e-06]
[1765892194386,0.0114838,87098.0,87097.0,2.25e-06]
[1765892194591,0.43888668,87098.0,87097.0,2.25e-06]
[1765892194987,0.02740288,87098.0,87097.0,2.25e-06]
[1765892195192,0.43888668,87098.0,87071.0,0.0114873]
[1765892195383,0.0114844,87094.0,87060.0,0.0114888]
[1765892195589,0.0114851,87089.0,87032.0,0.0908024]
[1765892195785,0.011488,87067.0,87050.0,0.0114901]
[1765892195991,0.02740288,87066.0,87033.0,1.5]
[1765892196201,0.00017225,87062.0,87061.0,0.0114886]
[1765892196400,0.06132212,87080.0,87057.0,0.0114891]
[1765892196601,0.00017225,87070.0,87063.0,0.0114884]
[1765892196795,0.02736854,87069.0,87063.0,0.0114884]
[1765892197010,0.00017225,87070.0,87066.0,0.0114879]
[1765892197191,0.06132212,87091.0,87057.0,0.0114891]
[1765892197391,0.06132212,87091.0,87046.0,0.0114906]
[1765892197392,0.0114852,87088.0,87046.0,0.0114906]
[1765892197598,0.0114866,87077.0,87033.0,1.5]
[1765892197794,0.02736369,87076.0,87064.0,0.0114882]
[1765892198001,0.02736369,87075.0,87072.0,0.0114872]
[1765892198190,0.02736369,87074.0,87066.0,0.011488]
[1765892198389,0.00017225,87082.0,87066.0,0.011488]
[1765892198702,0.02735179,87081.0,87065.0,0.00017225]
[1765892198997,0.00017225,87082.0,87041.0,0.01159004]
[1765892198998,0.56634116,87075.0,87049.0,0.0114901]
[1765892199203,0.14610911,87074.0,87041.0,9.874e-05]
[1765892199402,0.0114925,87033.0,87016.0,0.0114945]
[1765892199592,0.02731585,87032.0,86990.0,1.5]
[1765892199793,0.08319585,87031.0,86990.0,1.5]
[1765892200098,0.00017237,87019.0,87008.0,0.0114956]
[1765892200298,0.00017237,87019.0,87015.0,0.0114947]
[1765892200602,1.53214,87048.0,87031.0,0.0114925]
[1765892200603,0.09614,87048.0,87031.0,0.0114925]
[1765892200803,0.7634896,87054.0,87034.0,0.0114922]
[1765892201103,0.02727612,87053.0,87008.0,0.0574785]
[1765892201289,0.06132212,87074.0,87038.0,0.0114916]
[1765892201490,0.2557722,87048.0,87012.0,0.0114951]
[1765892201695,0.00017237,87039.0,87036.0,0.0114919]
[1765892201900,0.2557722,87060.0,87046.0,0.0114905]
[1765892202105,0.2557722,87060.0,87029.0,0.01166517]
[1765892202106,0.0272581,87059.0,87045.0,0.0114907]
[1765892202292,0.2557722,87060.0,87044.0,0.00017237]
[1765892202491,0.0114894,87056.0,87044.0,0.00017237]
[1765892202888,0.2557722,87060.0,87044.0,0.00017237]
[1765892203093,0.77916205,87059.0,87044.0,0.00017237]
[1765892203289,0.0114901,87051.0,87044.0,0.00017237]
[1765892203600,0.0114908,87045.0,87001.0,0.0114966]
[1765892203899,0.2557722,87040.0,87039.0,0.0114916]
[1765892204103,0.2557722,87060.0,87049.0,0.0114901]
[1765892204403,0.2557722,87060.0,87049.0,0.0114902]
[1765892204599,0.2557722,87060.0,87026.0,0.0574665]
[1765892204794,0.2557722,87060.0,87043.0,0.011491]
[1765892205002,0.2557722,87050.0,87046.0,0.0114906]
[1765892205196,0.2557722,87050.0,87024.0,0.08825]
[1765892205395,0.011489,87059.0,87015.0,0.0114947]
[1765892205602,0.0114924,87034.0,87000.0,0.09773]
[1765892205797,0.00017237,87026.0,86998.0,0.0114969]
[1765892206013,0.0114943,87019.0,86989.0,0.04412]
[1765892206300,0.08829,87024.0,86992.0,0.0114977]
[1765892206600,0.08829,87024.0,86984.0,0.0114987]
[1765892206601,0.0114966,87002.0,86984.0,0.0114987]
[1765892206808,0.0114959,87007.0,86990.0,0.0114979]
[1765892206996,0.0114959,87007.0,86980.0,1.5]
[1765892207202,0.65736,87015.0,86980.0,1.5]
[1765892207406,0.00017237,87017.0,87007.0,0.0114958]
[1765892207601,0.00017237,87017.0,87014.0,0.0114948]
[1765892207905,0.51608,87046.0,87030.0,0.0114927]
[1765892208106,0.75344,87059.0,87044.0,0.0114909]
[1765892208303,0.75344,87059.0,87047.0,0.0114905]
[1765892208505,0.09614,87075.0,87047.0,0.0114905]
[1765892208805,0.00017237,87070.0,87057.0,0.0114892]
[1765892209008,0.00017237,87070.0,87067.0,0.0114879]
[1765892212401,0.47081216,87040.0,87000.0,0.09773]
[1765892212713,0.47081216,87040.0,86989.0,0.0114981]
[1765892212714,0.011494,87021.0,87018.0,0.00229839]
[1765892212897,0.0114948,87015.0,87011.0,0.00017238]
[1765892213103,0.0114942,87020.0,87011.0,0.00017238]
[1765892213503,0.0114935,87025.0,87012.0,0.011495]
[1765892214007,0.6458,87026.0,87011.0,0.00017238]
[1765892214310,0.75256,87028.0,87020.0,0.011494]
[1765892214508,0.0114944,87018.0,87011.0,0.00017238]
[1765892214710,0.00017238,87029.0,87020.0,0.011494]
[1765892214906,0.75256,87028.0,87016.0,0.0114945]
[1765892215212,0.75256,87028.0,87017.0,0.0114944]
[1765892215409,0.02725079,87027.0,87011.0,0.00017238]
[1765892215599,0.00017238,87029.0,87026.0,0.0114933]
[1765892215915,0.00017238,87029.0,87011.0,0.00017238]
[1765892216304,0.02725919,87028.0,87011.0,0.00017238]
[1765892216606,0.02725919,87027.0,87011.0,0.00017238]
[1765892216814,0.0114939,87022.0,87011.0,0.00017238]
[1765892217013,0.00017238,87029.0,87011.0,0.00017238]
[1765892217209,0.19013856,87028.0,87017.0,0.0114944]
[1765892217506,0.00017238,87029.0,87011.0,0.00017238]
[1765892217507,0.02725856,87027.0,87011.0,0.00017238]
[1765892217712,0.00017238,87029.0,87025.0,0.0114934]
[1765892217713,0.1816,87026.0,87025.0,0.0114934]
[1765892217907,0.1816,87026.0,87011.0,0.00017238]
[1765892217908,0.0272819,87026.0,87016.0,0.0114945]
[1765892218108,0.7518,87028.0,87011.0,0.00017238]
[1765892218109,0.0272819,87025.0,87011.0,0.00017238]
[1765892218301,0.02730094,87024.0,87020.0,0.0114941]
[1765892218504,0.02730094,87023.0,87020.0,0.0114941]
[1765892218710,0.00017238,87029.0,87023.0,0.0114936]
[1765892218905,0.02730447,87028.0,87027.0,0.0114932]
[1765892219116,0.02730447,87028.0,87024.0,0.0114936]
[1765892219415,0.02730447,87027.0,87024.0,0.0114936]
[1765892219614,0.623,87044.0,87038.0,0.0114916]
[1765892219811,0.623,87044.0,87009.0,0.09773]
[1765892219812,0.02730788,87043.0,87009.0,0.09773]
[1765892220009,1.437,87056.0,87009.0,0.09773]
[1765892220010,0.02730788,87042.0,87039.0,0.0114915]
[1765892220212,0.08132,87062.0,87024.0,0.0114935]
[1765892220411,0.0114913,87042.0,87029.0,0.0114929]
[1765892220607,0.02731026,87041.0,87027.0,0.00017238]
[1765892220810,0.00017238,87044.0,87043.0,0.0114911]
[1765892221006,0.00017238,87044.0,87027.0,0.00017238]
[1765892221007,0.06132212,87081.0,87032.0,0.09773]
[1765892221207,0.0114849,87090.0,86999.0,0.0114968]
[1765892221208,0.09614,87055.0,86999.0,0.0114968]
[1765892221419,0.05350991,87054.0,87031.0,0.0114926]
[1765892221611,0.02730991,87053.0,86992.0,0.0114977]
[1765892221913,0.0114937,87023.0,87022.0,0.00017238]
[1765892222121,0.0114935,87025.0,87022.0,0.00017238]
[1765892222410,0.02730991,87024.0,86993.0,0.0114976]
[1765892222618,0.0114962,87005.0,86989.0,0.0114981]
[1765892222807,0.02730991,87004.0,86992.0,0.0114977]
[1765892223009,0.02730991,87003.0,86992.0,0.0114977]
[1765892223314,0.02730991,87003.0,86972.0,0.00268]
[1765892223315,0.02730991,87002.0,86998.0,0.0114969]
[1765892223511,0.02730991,87001.0,86998.0,0.0114969]
[1765892223718,0.02730991,87000.0,86998.0,0.0114969]
[1765892223907,0.02730991,86999.0,86998.0,0.0114969]
[1765892224105,0.02730991,87005.0,86989.0,0.01167058]
[1765892224309,0.02730991,87005.0,86989.0,0.00017238]
[1765892224611,0.02730991,87005.0,87004.0,0.0114962]
[1765892225012,0.47081216,87030.0,86989.0,0.00017238]
[1765892225220,0.0114968,87000.0,86989.0,0.00017238]
[1765892225519,1.20049216,87010.0,86993.0,0.0114977]
[1765892225705,0.72968,87010.0,86989.0,0.00017238]
[1765892225905,0.00017238,87008.0,86989.0,0.00017238]
[1765892226101,0.00017238,87008.0,87006.0,0.0114958]
[1765892226312,0.00017238,87008.0,86993.0,0.0114976]
[1765892226313,0.06132212,87037.0,87009.0,0.09661]
[1765892226520,0.14257847,87075.0,87017.0,0.0574725]
[1765892226521,0.06132212,87054.0,87017.0,0.0574725]
[1765892226818,0.06132212,87082.0,87074.0,0.0114869]
[1765892227028,0.2514,87098.0,87038.0,0.0114916]
[1765892227029,0.0114868,87076.0,87038.0,0.0114916]
[1765892227314,0.00017225,87066.0,87049.0,0.0114902]
[1765892227502,0.00017225,87066.0,87048.0,0.00017225]
[1765892227703,0.00017225,87066.0,87062.0,0.0114885]
[1765892227914,0.00017225,87066.0,87048.0,0.00017225]
[1765892228111,0.00017225,87066.0,87064.0,0.0114882]
[1765892228312,0.06132212,87086.0,87079.0,0.0114862]
[1765892228503,0.0114863,87079.0,87035.0,0.03004]
[1765892228707,0.0114885,87063.0,87029.0,0.01276]
[1765892228909,0.0114882,87065.0,87029.0,0.01276]
[1765892229115,0.0114882,87065.0,87025.0,0.09661]
[1765892229313,0.06132212,87071.0,87050.0,0.0114901]
[1765892229314,0.00017225,87054.0,87050.0,0.0114901]
[1765892229615,0.00017225,87054.0,87044.0,0.0114909]
[1765892229816,0.00017225,87054.0,87036.0,0.00017225]
[1765892230116,0.00017225,87054.0,87043.0,0.0114909]
[1765892230308,0.0114898,87053.0,87036.0,0.00017225]
[1765892230507,0.00017225,87054.0,87036.0,0.00017225]
[1765892230705,0.0114942,87020.0,86981.0,1.43704]
[1765892231010,0.07281472,87032.0,86981.0,0.7802559]
[1765892231217,0.00568,87035.0,87006.0,0.0114959]
[1765892231218,0.0114936,87025.0,87006.0,0.0114959]
[1765892231415,0.0114943,87019.0,86999.0,0.0114968]
[1765892231618,0.00017235,87018.0,87000.0,0.00017235]
[1765892231914,0.00017235,87018.0,87004.0,0.0114961]
[1765892232417,0.0114945,87017.0,87000.0,0.00017235]
[1765892232713,0.00017235,87018.0,87000.0,0.00017235]
[1765892232918,0.00017235,87018.0,87014.0,0.0114948]
[1765892233517,0.00568,87035.0,87019.0,0.0114942]
[1765892233716,0.0114923,87034.0,87000.0,0.09661]
[1765892233912,0.00568,87035.0,87017.0,0.0114944]
[1765892234106,0.00568,87035.0,87015.0,0.0114946]
[1765892234419,0.0114937,87023.0,87016.0,0.00017235]
[1765892234714,0.0114939,87022.0,87016.0,0.00017235]
[1765892234915,0.0114944,87019.0,86979.0,0.0001224]
[1765892235109,0.0114965,87003.0,86985.0,0.0114987]
[1765892235311,0.06132212,87011.0,86979.0,0.0001224]
[1765892235509,0.06132212,87011.0,86982.0,0.0114991]
[1765892235713,0.06132212,87014.0,86985.0,0.0114987]
[1765892235922,0.0114966,87002.0,86979.0,0.0001224]
[1765892236104,0.00017235,87008.0,86995.0,0.0114973]
[1765892236310,0.0114961,87005.0,86991.0,0.00017235]
[1765892236616,0.00017235,87008.0,86991.0,0.00017235]
[1765892236821,0.01166805,87008.0,86991.0,0.00017235]
[1765892237022,0.01166805,87008.0,87003.0,0.0114963]
[1765892237023,0.02693474,87007.0,87003.0,0.0114963]
[1765892237314,0.00017235,87008.0,87007.0,0.0114958]
[1765892237515,0.02711409,87008.0,86991.0,0.00017235]
[1765892237717,0.0114967,87000.0,86991.0,0.00017235]
[1765892237912,0.02694174,86999.0,86991.0,0.00017235]
[1765892238117,0.02694174,86998.0,86991.0,0.01167025]
[1765892238421,0.02694174,86997.0,86991.0,0.00017235]
[1765892238611,0.02694174,86996.0,86991.0,0.00017235]
[1765892238918,0.02694174,86995.0,86991.0,0.01167015]
[1765892239109,0.02694174,86994.0,86991.0,0.01167015]
[1765892239311,0.00017235,87008.0,86991.0,0.00017235]
[1765892239514,0.02694253,87007.0,86991.0,0.00017235]
[1765892239715,0.0114973,86996.0,86991.0,0.00017235]
[1765892239919,0.02694253,86995.0,86991.0,0.00017235]
[1765892240206,0.02694253,86994.0,86992.0,0.0114978]
[1765892240411,0.02694253,86993.0,86992.0,0.0114978]
[1765892240613,0.00017235,87008.0,86991.0,0.00017235]
[1765892240614,0.02695334,87004.0,86991.0,0.00017235]
[1765892240910,0.02695334,87003.0,86991.0,0.00017235]
[1765892241112,0.02695334,87002.0,86998.0,0.0114969]
[1765892241316,0.02695334,87001.0,86998.0,0.0114969]
[1765892241513,0.02695334,87000.0,86998.0,0.0114969]
[1765892241710,0.00017235,87008.0,87007.0,0.0114958]
[1765892242114,0.02714443,87008.0,87007.0,0.0114958]
[1765892242524,0.06132212,87030.0,87026.0,0.0114933]
[1765892242718,0.06132212,87048.0,87012.0,0.0574759]
[1765892243017,0.1880087,87062.0,87046.0,0.0114906]
[1765892243018,0.06132212,87054.0,87046.0,0.0114906]
[1765892243224,0.06132212,87055.0,87050.0,0.0114901]
[1765892243422,0.06132212,87058.0,87046.0,0.0114906]
[1765892243620,0.1880086,87062.0,87043.0,0.00017235]
[1765892243621,0.00017235,87061.0,87043.0,0.00017235]
[1765892244008,0.39261433,87053.0,87043.0,0.01166335]
[1765892244218,0.0114899,87052.0,87043.0,0.00017235]
[1765892244524,0.0114943,87019.0,86992.0,1.43736]
[1765892244718,0.39261433,87020.0,86988.0,0.09661]
[1765892244910,0.39261433,87020.0,86978.0,0.0114995]
[1765892244911,0.0114958,87008.0,86989.0,0.0114981]
[1765892245216,0.39261433,87020.0,86985.0,0.0114987]
[1765892245217,0.15176,87013.0,86985.0,0.0114987]
[1765892245418,0.39261433,87000.0,86978.0,0.00229945]
[1765892245620,0.011498,86991.0,86990.0,0.00017235]
[1765892245822,0.0114984,86988.0,86978.0,0.00229945]
[1765892246025,0.0114988,86985.0,86978.0,0.00229945]
[1765892246624,0.0114986,86986.0,86978.0,0.00229945]
[1765892247021,0.27604,86989.0,86978.0,0.00229945]
[1765892247323,0.0114994,86980.0,86978.0,0.00229945]
[1765892247510,0.0114994,86980.0,86978.0,1.85e-06]
[1765892247716,0.0114993,86981.0,86978.0,1.85e-06]
[1765892248317,0.0114985,86987.0,86978.0,1.85e-06]
[1765892248517,0.00017245,86988.0,86978.0,1.85e-06]
[1765892248518,0.0114993,86981.0,86978.0,1.85e-06]
[1765892248712,0.00011329,86986.0,86978.0,1.85e-06]
[1765892248919,0.0114992,86982.0,86978.0,1.85e-06]
[1765892249215,0.00011329,86986.0,86978.0,0.0114996]
[1765892249538,0.00011329,86986.0,86974.0,4.2e-06]
[1765892249728,0.0114992,86982.0,86974.0,4.2e-06]
[1765892250224,0.0115,86976.0,86951.0,0.0115032]
[1765892250523,0.00011329,86986.0,86949.0,1.5]
[1765892250726,0.00011329,86986.0,86985.0,0.0114987]
[1765892251117,0.00011329,86986.0,86952.0,0.1345956]
[1765892251118,0.01161189,86986.0,86976.0,0.0114998]
[1765892251323,0.39272762,86986.0,86977.0,0.0114997]
[1765892251624,0.39272762,86986.0,86972.0,0.00017245]
[1765892251625,0.0114987,86985.0,86972.0,0.00017245]
[1765892251818,0.0114995,86979.0,86972.0,0.00017245]
[1765892252012,0.0115002,86974.0,86972.0,0.00017245]
[1765892252216,0.43936,86979.0,86964.0,0.0115015]
[1765892252415,0.39261433,86970.0,86942.0,0.0115043]
[1765892252623,0.00013236,86969.0,86942.0,0.0115043]
[1765892252829,0.00013236,86969.0,86968.0,0.011501]
[1765892253019,0.00013236,86969.0,86964.0,0.0115014]
[1765892253219,0.00013236,86969.0,86967.0,0.0115011]
[1765892253419,0.00013236,86969.0,86963.0,0.0115016]
[1765892253613,0.00013236,86969.0,86958.0,0.00017245]
[1765892253614,0.00013236,86969.0,86967.0,0.0115011]
[1765892254118,0.00017245,86975.0,86974.0,0.3251602]
[1765892254314,0.00017245,86975.0,86974.0,0.0115002]
[1765892254527,0.17470529,86984.0,86958.0,0.00017245]
[1765892254723,0.17828,87000.0,86991.0,0.0114978]
[1765892254923,0.02659941,86999.0,86966.0,0.09102]
[1765892255118,0.17470529,86980.0,86979.0,0.31366]
[1765892255316,0.06132212,87014.0,86970.0,0.0115007]
[1765892255317,0.39277894,87010.0,86988.0,0.31366]
[1765892255522,0.02659676,87009.0,86970.0,0.0115007]
[1765892255723,0.0114961,87005.0,86990.0,0.00017245]
[1765892255931,0.32576,86991.0,86962.0,0.0115017]
[1765892256125,0.39277894,86984.0,86978.0,0.0114996]
[1765892256332,0.36704,86993.0,86981.0,0.0114992]
[1765892256626,0.0114982,86989.0,86975.0,0.0115]
[1765892256824,0.0114982,86989.0,86971.0,0.0115005]
[1765892257020,0.00017245,86989.0,86975.0,0.0115]
[1765892257217,0.32576,86972.0,86971.0,0.00017245]
[1765892257729,0.5994,86987.0,86971.0,0.00017245]
[1765892258030,0.0114987,86985.0,86971.0,0.00017245]
[1765892258228,0.02660388,86984.0,86971.0,0.00017245]
[1765892258415,0.0114991,86983.0,86971.0,0.00017245]
[1765892258729,0.011499,86984.0,86971.0,0.00017245]
[1765892258929,0.00017245,86989.0,86978.0,0.0114996]
[1765892259126,0.02662586,86988.0,86971.0,0.00017245]
[1765892259327,0.71185245,86989.0,86971.0,0.00017245]
[1765892259328,0.02662586,86987.0,86974.0,0.0115001]
[1765892259519,0.02662586,86986.0,86984.0,0.0114988]
[1765892259721,0.00017245,86989.0,86986.0,0.0114985]
[1765892259917,0.39277894,87000.0,86971.0,0.00017245]
[1765892260123,0.02664633,86999.0,86971.0,0.00017245]
[1765892260326,0.02664633,86998.0,86977.0,0.0114997]
[1765892260530,0.02664633,86997.0,86986.0,0.0114985]
[1765892260731,0.02664633,86996.0,86988.0,0.0114982]
[1765892260928,0.02664633,86995.0,86971.0,0.00017245]
[1765892261229,0.02664633,86994.0,86993.0,0.0114977]
[1765892261431,0.00017245,87001.0,86993.0,0.0114977]
[1765892261432,0.00017245,87001.0,87000.0,0.32364]
[1765892261732,0.10184176,87035.0,87016.0,0.0114946]
[1765892261733,0.011493,87029.0,87016.0,0.0114946]
[1765892261930,0.02667993,87028.0,87027.0,0.0114932]
[1765892262126,0.39286872,87040.0,87033.0,0.0114923]
[1765892262325,0.02668334,87039.0,87036.0,0.011492]